{"text_format":"3","workbook":"xlsx","n_sheets":4,"sheets":["Списък за пазаруване","Разбивка на бюджета","Списък със задачи","Споделяне на списъка"],"not_rendered":{"charts":2,"images":2,"defined_names":12},"read":"whole","date_system":"1900"}

{"sheet":"Списък за пазаруване","index":0,"n_rows":25,"n_cols":8,"rows_kept":25,"merged":[[0,1,0,2],[2,1,2,7],[3,1,3,2],[4,4,6,7]]}
[null,"Отново на училище",null,"Планировчик"]
[]
[null,"Проследявайте своя процес на пазаруване по отношение на сумите по категории в бюджета, записани в \"Разбивка на бюджета\"."]
[null,"Кратък бюджет",null,null,{"$f":"\"Напредък с покупките (\"&COUNTIFS(Контролен_списък[Купени], \">0\")&\" от \"&COUNTIFS(Контролен_списък[За купуване], \">0\")&\")\"","v":"Напредък с покупките (1 от 6)"}]
[null,"Бюджет",{"v":1500,"d":"1,500.00 лв."},null,{"$f":"IFERROR(COUNTIFS(Контролен_списък[За купуване],\">0\",Контролен_списък[Купени],\">0\")/СумаАртикулиЗаКупуване,0)","v":{"v":0.16666666666666666,"d":"17%"}}]
[null,"Обща сума на списъка за пазаруване",{"$f":"IFERROR(SUM(КонтроленСписъкОбщо), \"\")","v":{"v":365,"d":"365.00 лв."}}]
[null,"Оставащи пари",{"$f":"IFERROR(C5-C6, \"\")","v":{"v":1135,"d":"1,135.00 лв."}}]
[null,"Списък за пазаруване"]
[null,"Артикул","Категория","Количество","За купуване","Цена","Купени","Обща цена"]
[null,"Математика","Учебници",1,1,{"v":55,"d":"55.00 лв."},1,{"$f":"IFERROR(Контролен_списък[Количество]*Контролен_списък[Цена], \"\")","v":{"v":55,"d":"55.00 лв."}}]
[null,"Български език","Учебници",1,1,null,null,{"$f":"IFERROR(Контролен_списък[Количество]*Контролен_списък[Цена], \"\")","v":0}]
[null,"Раница","Пособия",1,null,{"v":30,"d":"30.00 лв."},null,{"$f":"IFERROR(Контролен_списък[Количество]*Контролен_списък[Цена], \"\")","v":{"v":30,"d":"30.00 лв."}}]
[null,"Калкулатор","Пособия",1,{"$nulls":3},{"$f":"IFERROR(Контролен_списък[Количество]*Контролен_списък[Цена], \"\")","v":0}]
[null,"Маркери","Пособия",3,{"$nulls":3},{"$f":"IFERROR(Контролен_списък[Количество]*Контролен_списък[Цена], \"\")","v":0}]
[null,"Униформа","Дрехи",2,1,{"v":100,"d":"100.00 лв."},null,{"$f":"IFERROR(Контролен_списък[Количество]*Контролен_списък[Цена], \"\")","v":{"v":200,"d":"200.00 лв."}}]
[null,"Риза със закопчаване","Дрехи",4,{"$nulls":3},{"$f":"IFERROR(Контролен_списък[Количество]*Контролен_списък[Цена], \"\")","v":0}]
[null,"Тениска","Дрехи",5,{"$nulls":3},{"$f":"IFERROR(Контролен_списък[Количество]*Контролен_списък[Цена], \"\")","v":0}]
[null,"Шорти","Дрехи",2,{"$nulls":3},{"$f":"IFERROR(Контролен_списък[Количество]*Контролен_списък[Цена], \"\")","v":0}]
[null,"Маратонки","Дрехи",2,1,null,null,{"$f":"IFERROR(Контролен_списък[Количество]*Контролен_списък[Цена], \"\")","v":0}]
[null,"Чорапи","Дрехи",10,{"$nulls":3},{"$f":"IFERROR(Контролен_списък[Количество]*Контролен_списък[Цена], \"\")","v":0}]
[null,"Пролетно яке","Дрехи",1,1,{"v":80,"d":"80.00 лв."},null,{"$f":"IFERROR(Контролен_списък[Количество]*Контролен_списък[Цена], \"\")","v":{"v":80,"d":"80.00 лв."}}]
[null,"Пуловери","Дрехи",1,{"$nulls":3},{"$f":"IFERROR(Контролен_списък[Количество]*Контролен_списък[Цена], \"\")","v":0}]
[null,"Суитчъри","Дрехи",1,{"$nulls":3},{"$f":"IFERROR(Контролен_списък[Количество]*Контролен_списък[Цена], \"\")","v":0}]
[null,"Бельо","Дрехи",10,{"$nulls":3},{"$f":"IFERROR(Контролен_списък[Количество]*Контролен_списък[Цена], \"\")","v":0}]
[null,"Зимно яке","Дрехи",1,1,null,null,{"$f":"IFERROR(Контролен_списък[Количество]*Контролен_списък[Цена], \"\")","v":0}]

{"sheet":"Разбивка на бюджета","index":1,"n_rows":6,"n_cols":3,"rows_kept":6}
[null,"Разбивка на бюджета"]
[null,"Добавяйте категории и суми в бюджета, за да проследявате по отношение на вашия списък за пазаруване."]
[null,"Категория","Обща цена"]
[null,"Дрехи",{"$f":"IFERROR(SUMIFS(Контролен_списък[Обща цена],Контролен_списък[Категория],Категория[Категория]), \"\")","v":{"v":280,"d":"280.00 лв."}}]
[null,"Пособия",{"$f":"IFERROR(SUMIFS(Контролен_списък[Обща цена],Контролен_списък[Категория],Категория[Категория]), \"\")","v":{"v":30,"d":"30.00 лв."}}]
[null,"Учебници",{"$f":"IFERROR(SUMIFS(Контролен_списък[Обща цена],Контролен_списък[Категория],Категория[Категория]), \"\")","v":{"v":55,"d":"55.00 лв."}}]

{"sheet":"Списък със задачи","index":2,"n_rows":22,"n_cols":3,"rows_kept":22}
[null,"Списък със задачи"]
[null,"Проследявайте всички дейности, които трябва да изпълните, преди да започне училище."]
[null,"Готово","Задача"]
[null,"x","Попълване на всички формуляри за регистрация"]
[null,null,"Планиране на медицински преглед, ако е необходимо"]
[null,null,"Удостоверяване на всички задължителни имунизации"]
[null,null,"Получаване на бележка с инструкции за дозировката всички задължителни лекарства от лекар"]
[null,null,"Преглед на дрескода за училището"]
[null,null,"Получаване на списък на учебните пособия"]
[null,null,"Среща с учителя"]
[null,null,"Определяне на предпочитания метод за комуникация на учителя (телефон, имейл, писмени бележки)"]
[null,null,"Обиколка на училището с вашето дете"]
[null,null,"Помощ за вашето дете да запомни вашия домашен телефон, служебен телефон и домашен адрес"]
[null,null,"Организиране на транспорт, определяне на безопасно място за срещи и упражняване на редовните дейности"]
[null,null,"При отиване на училище пеша, репетиране на маршрута до и от училище с детето няколко пъти"]
[null,null,"При откарване на няколко деца с кола, представяне на вашето дете на всички шофьори на колите"]
[null,null,"При пътуване с автобус, определяне на часове и спирки на автобуса"]
[null,null,"Организиране на гледане на детето грижи/гледане след училище"]
[null,null,"Планиране на меню за закуска, училищна закуска, пакетиран обяд и закуска след училище"]
[null,null,"Определяне на място за домашните работи и програма"]
[null,null,"Установяване на часовете на лягане вечер най-малко две седмици, преди започване на училище"]
[null,null,"Подготовка на календар на всички училищни събития и дейности"]

{"sheet":"Споделяне на списъка","index":3,"n_rows":4,"n_cols":5,"rows_kept":4}
[null,"Споделяне на списъка",null,null,"Споделете този списък с други хора, така че те да могат да участват. Изберете \"Споделяне\" в горния десен ъгъл или натиснете ALT, а после и след това ЩФ. Запишете файла в OneDrive и изпратете връзка на приятелите си."]
[null,"Име","Имейл","Споделено?"]
[null,"Човек 1","ime@email.com","Да"]
[null,"Човек 2","ime@email.com","Не"]